[Event "Early-Titled-Tuesday-Blitz-October-17-2023"]
[Site "Chess.com"]
[Date "2023.10.17"]
[Round "9"]
[White "Wizard_97"]
[Black "venturov"]
[Result "1-0"]
[WhiteElo "2578"]
[BlackElo "2454"]
[TimeControl "180+1"]
[EndTime "9:45:37 PDT"]
[Termination "Wizard_97 won by resignation"]

1. e4 {[%clk 0:03:00.9]} 1... c5 {[%clk 0:02:59.7]} 2. Nf3 {[%clk 0:03:00.5]}
2... e6 {[%clk 0:02:59.2]} 3. d4 {[%clk 0:03:00.4]} 3... cxd4 {[%clk 0:02:59.3]}
4. Nxd4 {[%clk 0:03:01.3]} 4... Nc6 {[%clk 0:02:59.6]} 5. Nc3 {[%clk 0:02:59.6]}
5... Qc7 {[%clk 0:02:58.4]} 6. Ndb5 {[%clk 0:02:59.3]} 6... Qb8 {[%clk
0:02:58.3]} 7. Be3 {[%clk 0:02:50.3]} 7... a6 {[%clk 0:02:58.4]} 8. Bb6 {[%clk
0:02:50.5]} 8... axb5 {[%clk 0:02:58.9]} 9. Nxb5 {[%clk 0:02:50.4]} 9... Bb4+
{[%clk 0:02:59.5]} 10. c3 {[%clk 0:02:50.4]} 10... Ba5 {[%clk 0:02:59.9]} 11.
Nc7+ {[%clk 0:02:46.8]} 11... Qxc7 {[%clk 0:03:00]} 12. Bxc7 {[%clk 0:02:46.8]}
12... Bxc7 {[%clk 0:03:00.9]} 13. Be2 {[%clk 0:02:47.3]} 13... Nf6 {[%clk
0:02:58.8]} 14. Bd3 {[%clk 0:02:45.3]} 14... O-O {[%clk 0:02:57]} 15. O-O {[%clk
0:02:44.2]} 15... d5 {[%clk 0:02:55.9]} 16. exd5 {[%clk 0:02:42]} 16... Nxd5
{[%clk 0:02:56.8]} 17. Qc2 {[%clk 0:02:39.8]} 17... h6 {[%clk 0:02:53.3]} 18. a4
{[%clk 0:02:37.2]} 18... Rd8 {[%clk 0:02:48.3]} 19. Bh7+ {[%clk 0:02:33.8]}
19... Kh8 {[%clk 0:02:47.8]} 20. Be4 {[%clk 0:02:33.8]} 20... Bd7 {[%clk
0:02:41.4]} 21. Rad1 {[%clk 0:02:32.8]} 21... Be8 {[%clk 0:02:40.9]} 22. b4
{[%clk 0:02:32.1]} 22... Rac8 {[%clk 0:02:37.5]} 23. a5 {[%clk 0:02:27]} 23...
Ncxb4 {[%clk 0:02:06.2]} 24. cxb4 {[%clk 0:02:25.9]} 24... Bxh2+ {[%clk
0:02:06.5]} 25. Kxh2 {[%clk 0:02:25.8]} 25... Rxc2 {[%clk 0:02:07.2]} 26. Bxc2
{[%clk 0:02:26.1]} 26... Rc8 {[%clk 0:02:02.3]} 27. Be4 {[%clk 0:02:23.9]} 27...
Nxb4 {[%clk 0:02:00.5]} 28. Bxb7 {[%clk 0:02:23.3]} 28... Rb8 {[%clk 0:02:00.5]}
29. a6 {[%clk 0:02:23.2]} 29... Nc6 {[%clk 0:01:36.3]} 30. Bxc6 {[%clk
0:02:05.9]} 30... Bxc6 {[%clk 0:01:36.1]} 31. Rc1 {[%clk 0:02:06.2]} 31... Bd5
{[%clk 0:01:34.8]} 32. Rc7 {[%clk 0:02:05.2]} 32... Rb6 {[%clk 0:01:25.9]} 33.
Ra1 {[%clk 0:02:01]} 33... Rb8 {[%clk 0:01:19]} 34. a7 {[%clk 0:01:58.3]} 34...
Rf8 {[%clk 0:01:17.2]} 35. Rb1 {[%clk 0:01:58.3]} 1-0

[Event "Early-Titled-Tuesday-Blitz-October-17-2023"]
[Site "Chess.com"]
[Date "2023.10.17"]
[Round "9"]
[White "emeli_chess"]
[Black "Maxfan2008"]
[Result "0-1"]
[WhiteElo "2403"]
[BlackElo "2526"]
[TimeControl "180+1"]
[EndTime "9:45:44 PDT"]
[Termination "Maxfan2008 won by resignation"]

1. d4 {[%clk 0:03:00.9]} 1... d5 {[%clk 0:02:59.4]} 2. c4 {[%clk 0:03:00.6]}
2... c6 {[%clk 0:02:59.7]} 3. Nc3 {[%clk 0:03:00.7]} 3... Nf6 {[%clk 0:03:00.2]}
4. e3 {[%clk 0:03:01.1]} 4... e6 {[%clk 0:03:00.4]} 5. Nf3 {[%clk 0:03:01.4]}
5... Nbd7 {[%clk 0:03:00.6]} 6. Bd3 {[%clk 0:03:01.5]} 6... dxc4 {[%clk
0:03:00.4]} 7. Bxc4 {[%clk 0:03:01.8]} 7... b5 {[%clk 0:03:00.8]} 8. Bd3 {[%clk
0:03:02.4]} 8... a6 {[%clk 0:03:00.6]} 9. e4 {[%clk 0:03:01.6]} 9... c5 {[%clk
0:02:59.2]} 10. d5 {[%clk 0:02:59]} 10... Bd6 {[%clk 0:02:42.8]} 11. dxe6 {[%clk
0:02:47.6]} 11... fxe6 {[%clk 0:02:42.1]} 12. O-O {[%clk 0:02:46.5]} 12... O-O
{[%clk 0:02:32]} 13. Bxb5 {[%clk 0:01:49.4]} 13... Bxh2+ {[%clk 0:02:12.3]} 14.
Nxh2 {[%clk 0:01:48.7]} 14... axb5 {[%clk 0:02:11.7]} 15. Nxb5 {[%clk
0:01:46.9]} 15... Ba6 {[%clk 0:02:07.7]} 16. Qb3 {[%clk 0:01:40.2]} 16... Qb6
{[%clk 0:02:05.6]} 17. e5 {[%clk 0:01:06.1]} 17... Nd5 {[%clk 0:01:55.9]} 18.
Nf3 {[%clk 0:00:24.4]} 18... Qxb5 {[%clk 0:01:49.8]} 19. Qd1 {[%clk 0:00:23.9]}
19... Qxf1+ {[%clk 0:01:48]} 0-1

[Event "Early-Titled-Tuesday-Blitz-October-17-2023"]
[Site "Chess.com"]
[Date "2023.10.17"]
[Round "9"]
[White "esrosenberg"]
[Black "Martial2008"]
[Result "0-1"]
[WhiteElo "2423"]
[BlackElo "2640"]
[TimeControl "180+1"]
[EndTime "9:45:59 PDT"]
[Termination "Martial2008 won by resignation"]

1. d4 {[%clk 0:03:00.9]} 1... Nf6 {[%clk 0:02:58.7]} 2. Nf3 {[%clk 0:03:01.6]}
2... e6 {[%clk 0:02:54.9]} 3. g3 {[%clk 0:03:01.3]} 3... b5 {[%clk 0:02:50.1]}
4. Bg2 {[%clk 0:03:01.9]} 4... Bb7 {[%clk 0:02:50]} 5. O-O {[%clk 0:03:02.4]}
5... Be7 {[%clk 0:02:49.2]} 6. Bg5 {[%clk 0:02:36.4]} 6... O-O {[%clk
0:02:47.4]} 7. Qd3 {[%clk 0:02:27.6]} 7... a6 {[%clk 0:02:44.7]} 8. Nbd2 {[%clk
0:02:26.2]} 8... d5 {[%clk 0:02:32.4]} 9. Nb3 {[%clk 0:02:24.9]} 9... Nbd7
{[%clk 0:02:32]} 10. Na5 {[%clk 0:02:23.6]} 10... Rb8 {[%clk 0:02:28.8]} 11.
Nxb7 {[%clk 0:02:22.4]} 11... Rxb7 {[%clk 0:02:29.7]} 12. b3 {[%clk 0:02:09.4]}
12... Ne4 {[%clk 0:02:26.9]} 13. Bxe7 {[%clk 0:02:08.7]} 13... Qxe7 {[%clk
0:02:27.8]} 14. Nd2 {[%clk 0:01:48.8]} 14... f5 {[%clk 0:02:25.7]} 15. f3 {[%clk
0:01:44.1]} 15... Nxd2 {[%clk 0:02:17.9]} 16. Qxd2 {[%clk 0:01:44.2]} 16... c5
{[%clk 0:02:18]} 17. e4 {[%clk 0:01:42.4]} 17... cxd4 {[%clk 0:02:14.7]} 18.
Qxd4 {[%clk 0:01:39]} 18... Qc5 {[%clk 0:02:01.7]} 19. Qxc5 {[%clk 0:01:38.1]}
19... Nxc5 {[%clk 0:02:02.6]} 20. exd5 {[%clk 0:01:38.7]} 20... exd5 {[%clk
0:02:03.5]} 21. f4 {[%clk 0:01:38.8]} 21... Ne4 {[%clk 0:02:02]} 22. Rfd1 {[%clk
0:01:29.9]} 22... Rd8 {[%clk 0:02:02]} 23. c4 {[%clk 0:00:58.8]} 23... bxc4
{[%clk 0:01:59.1]} 24. bxc4 {[%clk 0:00:59.7]} 24... d4 {[%clk 0:01:59.4]} 25.
c5 {[%clk 0:01:00.3]} 25... Rc7 {[%clk 0:01:57.7]} 26. Rac1 {[%clk 0:00:58.7]}
26... Rxc5 {[%clk 0:01:56.1]} 27. Bf1 {[%clk 0:00:43.7]} 27... Rxc1 {[%clk
0:01:52.7]} 28. Rxc1 {[%clk 0:00:43.8]} 28... d3 {[%clk 0:01:53.3]} 29. Rd1
{[%clk 0:00:41.9]} 29... d2 {[%clk 0:01:52.7]} 30. Bc4+ {[%clk 0:00:37.6]} 30...
Kf8 {[%clk 0:01:49.7]} 31. Kf1 {[%clk 0:00:35]} 31... Nc3 {[%clk 0:01:48.2]} 32.
Bb3 {[%clk 0:00:35.3]} 32... Nxd1 {[%clk 0:01:47.7]} 33. Bxd1 {[%clk 0:00:36.2]}
33... Re8 {[%clk 0:01:48.2]} 0-1

[Event "Early-Titled-Tuesday-Blitz-October-17-2023"]
[Site "Chess.com"]
[Date "2023.10.17"]
[Round "9"]
[White "Ural_bogatyr"]
[Black "Goryachkina"]
[Result "1/2-1/2"]
[WhiteElo "2543"]
[BlackElo "2652"]
[TimeControl "180+1"]
[EndTime "9:46:14 PDT"]
[Termination "Game drawn by repetition"]

1. d4 {[%clk 0:02:59.6]} 1... Nf6 {[%clk 0:02:59.6]} 2. Nc3 {[%clk 0:02:59.3]}
2... e6 {[%clk 0:02:59]} 3. e4 {[%clk 0:02:58.8]} 3... d5 {[%clk 0:02:58.9]} 4.
Bg5 {[%clk 0:02:58.3]} 4... dxe4 {[%clk 0:02:56.2]} 5. Nxe4 {[%clk 0:02:58.2]}
5... Be7 {[%clk 0:02:56.6]} 6. Nxf6+ {[%clk 0:02:53.6]} 6... Bxf6 {[%clk
0:02:55.6]} 7. Bxf6 {[%clk 0:02:53.6]} 7... Qxf6 {[%clk 0:02:55.9]} 8. Nf3
{[%clk 0:02:53]} 8... Bd7 {[%clk 0:02:54.3]} 9. Ne5 {[%clk 0:02:46.5]} 9... O-O
{[%clk 0:02:42.8]} 10. Bd3 {[%clk 0:02:36.4]} 10... Rd8 {[%clk 0:02:32.7]} 11.
Qe2 {[%clk 0:02:24.4]} 11... Nc6 {[%clk 0:02:21.7]} 12. Nxd7 {[%clk 0:02:23.6]}
12... Rxd7 {[%clk 0:02:21]} 13. c3 {[%clk 0:02:23.9]} 13... Rad8 {[%clk
0:02:05.6]} 14. O-O {[%clk 0:01:39]} 14... e5 {[%clk 0:01:59.3]} 15. Rfe1 {[%clk
0:01:27.8]} 15... g6 {[%clk 0:01:51.3]} 16. dxe5 {[%clk 0:01:20.7]} 16... Nxe5
{[%clk 0:01:47.6]} 17. Qxe5 {[%clk 0:00:54]} 17... Qxe5 {[%clk 0:01:47.6]} 18.
Rxe5 {[%clk 0:00:54.9]} 18... Rxd3 {[%clk 0:01:47.7]} 19. Kf1 {[%clk 0:00:43.4]}
19... Rd2 {[%clk 0:01:40.6]} 20. Re2 {[%clk 0:00:41.8]} 20... Kf8 {[%clk
0:01:23.5]} 21. Rae1 {[%clk 0:00:40.7]} 21... Kg7 {[%clk 0:01:20.3]} 22. Rxd2
{[%clk 0:00:37.8]} 22... Rxd2 {[%clk 0:01:20]} 23. Re2 {[%clk 0:00:38.1]} 23...
Rd1+ {[%clk 0:01:20.5]} 24. Re1 {[%clk 0:00:38.5]} 24... Rd2 {[%clk 0:01:21]}
25. Re2 {[%clk 0:00:38.8]} 25... Rd1+ {[%clk 0:01:21.5]} 26. Re1 {[%clk
0:00:39.2]} 26... Rd2 {[%clk 0:01:22.1]} 1/2-1/2

[Event "Early-Titled-Tuesday-Blitz-October-17-2023"]
[Site "Chess.com"]
[Date "2023.10.17"]
[Round "9"]
[White "Tobias_Koelle"]
[Black "ArtemDyachuk"]
[Result "0-1"]
[WhiteElo "2930"]
[BlackElo "2668"]
[TimeControl "180+1"]
[EndTime "9:46:19 PDT"]
[Termination "ArtemDyachuk won by resignation"]

1. d4 {[%clk 0:03:00.9]} 1... Nf6 {[%clk 0:02:59.3]} 2. Nc3 {[%clk 0:03:01.3]}
2... d5 {[%clk 0:02:58.8]} 3. Bf4 {[%clk 0:03:01.8]} 3... c6 {[%clk 0:02:58.8]}
4. e3 {[%clk 0:03:02]} 4... Qb6 {[%clk 0:02:59]} 5. Rb1 {[%clk 0:03:01.6]} 5...
Bf5 {[%clk 0:02:58.5]} 6. Nf3 {[%clk 0:03:00.8]} 6... e6 {[%clk 0:02:57.4]} 7.
Ne5 {[%clk 0:03:00.7]} 7... Nbd7 {[%clk 0:02:56.1]} 8. g4 {[%clk 0:02:54.5]}
8... Bg6 {[%clk 0:02:54.8]} 9. h4 {[%clk 0:02:53.1]} 9... Nxe5 {[%clk
0:02:15.3]} 10. dxe5 {[%clk 0:02:52.8]} 10... Nxg4 {[%clk 0:02:15]} 11. Qxg4
{[%clk 0:01:37.9]} 11... Bxc2 {[%clk 0:02:13.1]} 12. Qe2 {[%clk 0:01:38.5]}
12... Bxb1 {[%clk 0:02:09.1]} 13. Nxb1 {[%clk 0:01:39.4]} 13... Bb4+ {[%clk
0:02:08.3]} 14. Kd1 {[%clk 0:01:38.3]} 14... O-O-O {[%clk 0:02:03.7]} 15. a3
{[%clk 0:01:38.3]} 15... Be7 {[%clk 0:01:59.9]} 16. Qc2 {[%clk 0:01:36.2]} 16...
d4 {[%clk 0:01:57.2]} 17. e4 {[%clk 0:01:35.8]} 17... d3 {[%clk 0:01:55.5]} 18.
Bxd3 {[%clk 0:01:35.6]} 18... Rxd3+ {[%clk 0:01:52.4]} 19. Qxd3 {[%clk
0:01:36.5]} 19... Rd8 {[%clk 0:01:49.8]} 20. Qxd8+ {[%clk 0:01:27.9]} 20... Kxd8
{[%clk 0:01:47.5]} 21. Kc2 {[%clk 0:01:04.6]} 21... Qxf2+ {[%clk 0:01:44.3]} 22.
Bd2 {[%clk 0:01:02.8]} 22... Qf3 {[%clk 0:01:44.2]} 23. Re1 {[%clk 0:01:01.9]}
23... Bxh4 {[%clk 0:01:42.4]} 24. Re3 {[%clk 0:00:58.3]} 24... Qg4 {[%clk
0:01:42.3]} 25. Nc3 {[%clk 0:00:55.1]} 25... Bg5 {[%clk 0:01:38.4]} 26. Rd3+
{[%clk 0:00:56]} 26... Kc8 {[%clk 0:01:38.2]} 27. Be1 {[%clk 0:00:56.8]} 27...
h5 {[%clk 0:01:38]} 28. Na4 {[%clk 0:00:54.9]} 28... b6 {[%clk 0:01:33.7]} 29.
Nc3 {[%clk 0:00:50.1]} 29... h4 {[%clk 0:01:32.7]} 30. b4 {[%clk 0:00:50]} 30...
h3 {[%clk 0:01:32.4]} 31. b5 {[%clk 0:00:50.9]} 31... h2 {[%clk 0:01:30]} 32.
bxc6 {[%clk 0:00:49.4]} 32... h1=Q {[%clk 0:01:29.3]} 33. Nb5 {[%clk 0:00:50.3]}
33... Qe2+ {[%clk 0:01:28.8]} 34. Bd2 {[%clk 0:00:44.8]} 34... Qb1+ {[%clk
0:01:27.5]} 35. Kxb1 {[%clk 0:00:43.5]} 35... Qxd3+ {[%clk 0:01:27.8]} 36. Ka1
{[%clk 0:00:44.1]} 0-1

[Event "Early-Titled-Tuesday-Blitz-October-17-2023"]
[Site "Chess.com"]
[Date "2023.10.17"]
[Round "9"]
[White "adotand"]
[Black "GP9isback23"]
[Result "1-0"]
[WhiteElo "2854"]
[BlackElo "2670"]
[TimeControl "180+1"]
[EndTime "9:46:31 PDT"]
[Termination "adotand won by resignation"]

1. Nf3 {[%clk 0:02:58.4]} 1... Nf6 {[%clk 0:02:59.5]} 2. c4 {[%clk 0:02:58.9]}
2... e6 {[%clk 0:02:59.5]} 3. b3 {[%clk 0:02:58.2]} 3... d5 {[%clk 0:02:58.8]}
4. Bb2 {[%clk 0:02:58.9]} 4... Be7 {[%clk 0:02:59.1]} 5. e3 {[%clk 0:02:59]}
5... O-O {[%clk 0:02:59.3]} 6. Nc3 {[%clk 0:02:59.7]} 6... b6 {[%clk 0:02:58.6]}
7. cxd5 {[%clk 0:02:58.8]} 7... exd5 {[%clk 0:02:56.2]} 8. Ne2 {[%clk
0:02:59.1]} 8... c5 {[%clk 0:02:54.3]} 9. Ng3 {[%clk 0:02:59.4]} 9... Nc6 {[%clk
0:02:34.7]} 10. Bb5 {[%clk 0:02:59.3]} 10... Bd7 {[%clk 0:02:28.6]} 11. O-O
{[%clk 0:02:58.9]} 11... a6 {[%clk 0:02:28.4]} 12. Be2 {[%clk 0:02:58.4]} 12...
b5 {[%clk 0:02:28.5]} 13. Nh4 {[%clk 0:02:54.6]} 13... Ne4 {[%clk 0:02:09]} 14.
Nhf5 {[%clk 0:02:54.2]} 14... Bf6 {[%clk 0:02:07.1]} 15. Bxf6 {[%clk 0:02:52.8]}
15... Qxf6 {[%clk 0:02:04.8]} 16. Nxe4 {[%clk 0:02:53]} 16... dxe4 {[%clk
0:02:00]} 17. Ng3 {[%clk 0:02:53.5]} 17... Qe7 {[%clk 0:01:54.8]} 18. Qc2 {[%clk
0:02:52.8]} 18... Rae8 {[%clk 0:01:16.9]} 19. Rac1 {[%clk 0:02:51.4]} 19... c4
{[%clk 0:01:16.9]} 20. bxc4 {[%clk 0:02:49.9]} 20... b4 {[%clk 0:01:17.5]} 21.
c5 {[%clk 0:02:43.3]} 21... f5 {[%clk 0:01:07.2]} 22. Nh5 {[%clk 0:02:36]} 22...
Kh8 {[%clk 0:00:44.7]} 23. Qb2 {[%clk 0:02:31.1]} 23... a5 {[%clk 0:00:41.6]}
24. Nf4 {[%clk 0:02:23.5]} 24... Ne5 {[%clk 0:00:38.1]} 25. a3 {[%clk
0:02:14.8]} 25... Bc6 {[%clk 0:00:25.9]} 26. axb4 {[%clk 0:02:13.3]} 26... axb4
{[%clk 0:00:26.8]} 27. Qxb4 {[%clk 0:02:10.7]} 27... Qg5 {[%clk 0:00:21.6]} 28.
Kh1 {[%clk 0:02:08]} 28... Rf6 {[%clk 0:00:20.1]} 29. Qd4 {[%clk 0:02:01.3]}
29... Rh6 {[%clk 0:00:19.4]} 30. h3 {[%clk 0:01:57.9]} 30... Qf6 {[%clk
0:00:10.8]} 31. Rb1 {[%clk 0:01:55.9]} 31... g5 {[%clk 0:00:09.1]} 32. Nh5
{[%clk 0:01:55.7]} 32... Qg6 {[%clk 0:00:07.8]} 33. Rb8 {[%clk 0:01:54.1]} 33...
Rxh5 {[%clk 0:00:05.8]} 34. Qxe5+ {[%clk 0:01:53.9]} 1-0

[Event "Early-Titled-Tuesday-Blitz-October-17-2023"]
[Site "Chess.com"]
[Date "2023.10.17"]
[Round "9"]
[White "Aswathchess"]
[Black "Truequitos"]
[Result "1-0"]
[WhiteElo "2660"]
[BlackElo "2511"]
[TimeControl "180+1"]
[EndTime "9:46:31 PDT"]
[Termination "Aswathchess won by resignation"]

1. d4 {[%clk 0:03:00.9]} 1... d5 {[%clk 0:02:57.4]} 2. c4 {[%clk 0:02:58.9]}
2... Nc6 {[%clk 0:02:57.5]} 3. Nf3 {[%clk 0:02:48.9]} 3... e5 {[%clk 0:02:57.4]}
4. cxd5 {[%clk 0:02:47.9]} 4... Qxd5 {[%clk 0:02:58.3]} 5. Nc3 {[%clk
0:02:45.3]} 5... Bb4 {[%clk 0:02:58.8]} 6. Bd2 {[%clk 0:02:44.6]} 6... Bxc3
{[%clk 0:02:59.2]} 7. Bxc3 {[%clk 0:02:44.7]} 7... e4 {[%clk 0:02:59.7]} 8. Nd2
{[%clk 0:02:44.2]} 8... e3 {[%clk 0:03:00.5]} 9. fxe3 {[%clk 0:02:43.6]} 9...
Nf6 {[%clk 0:03:01.2]} 10. Qb3 {[%clk 0:02:38.4]} 10... O-O {[%clk 0:03:01.2]}
11. Qxd5 {[%clk 0:02:37.9]} 11... Nxd5 {[%clk 0:03:01.9]} 12. e4 {[%clk
0:02:33.3]} 12... Ne3 {[%clk 0:03:00.2]} 13. Rc1 {[%clk 0:02:29.3]} 13... f5
{[%clk 0:02:45.1]} 14. d5 {[%clk 0:02:17.6]} 14... Nb8 {[%clk 0:02:16.7]} 15.
Bd4 {[%clk 0:02:16]} 15... Ng4 {[%clk 0:02:04.2]} 16. Rxc7 {[%clk 0:02:15.1]}
16... Bd7 {[%clk 0:01:45.3]} 17. h3 {[%clk 0:02:12.5]} 17... Nf6 {[%clk
0:01:41.8]} 18. Bxf6 {[%clk 0:02:12.1]} 18... gxf6 {[%clk 0:01:35.8]} 19. exf5
{[%clk 0:02:09.9]} 19... Bxf5 {[%clk 0:01:27.3]} 20. e4 {[%clk 0:02:05.3]} 20...
Re8 {[%clk 0:01:27]} 21. Bb5 {[%clk 0:02:04.5]} 21... Re5 {[%clk 0:01:21.8]} 22.
O-O {[%clk 0:01:55.4]} 22... Bg6 {[%clk 0:01:05.5]} 23. Rxf6 {[%clk 0:01:51.1]}
23... Na6 {[%clk 0:01:02.8]} 24. Bxa6 {[%clk 0:01:50.9]} 24... bxa6 {[%clk
0:01:02.6]} 25. d6 {[%clk 0:01:51.1]} 25... Rd8 {[%clk 0:00:56.5]} 26. d7 {[%clk
0:01:49.2]} 26... Kg7 {[%clk 0:00:48]} 27. Rxa6 {[%clk 0:01:46.3]} 27... Re7
{[%clk 0:00:35.9]} 28. Raxa7 {[%clk 0:01:45.3]} 28... Kf6 {[%clk 0:00:34.6]} 29.
Nc4 {[%clk 0:01:34.2]} 29... Bxe4 {[%clk 0:00:31.6]} 30. Nb6 {[%clk 0:01:32]}
30... Bf5 {[%clk 0:00:30.3]} 1-0

[Event "Early-Titled-Tuesday-Blitz-October-17-2023"]
[Site "Chess.com"]
[Date "2023.10.17"]
[Round "9"]
[White "Heinza9"]
[Black "GMSAGOR"]
[Result "0-1"]
[WhiteElo "2304"]
[BlackElo "2476"]
[TimeControl "180+1"]
[EndTime "9:46:38 PDT"]
[Termination "GMSAGOR won by resignation"]

1. e4 {[%clk 0:02:54.4]} 1... e5 {[%clk 0:02:59.9]} 2. Nf3 {[%clk 0:02:53.8]}
2... Nf6 {[%clk 0:03:00.6]} 3. Nc3 {[%clk 0:02:53.1]} 3... Bb4 {[%clk
0:03:00.2]} 4. Nxe5 {[%clk 0:02:51.8]} 4... O-O {[%clk 0:03:00.6]} 5. d3 {[%clk
0:02:48.4]} 5... d5 {[%clk 0:02:57.3]} 6. exd5 {[%clk 0:02:46.8]} 6... Re8
{[%clk 0:02:54.8]} 7. f4 {[%clk 0:02:44.5]} 7... Nxd5 {[%clk 0:02:54.7]} 8. Bd2
{[%clk 0:02:26.7]} 8... Bxc3 {[%clk 0:02:52.6]} 9. bxc3 {[%clk 0:02:26.2]} 9...
f6 {[%clk 0:02:50.7]} 10. c4 {[%clk 0:02:24.8]} 10... fxe5 {[%clk 0:02:37.5]}
11. cxd5 {[%clk 0:02:23.8]} 11... exf4+ {[%clk 0:02:37.3]} 12. Kf2 {[%clk
0:02:19]} 12... Qh4+ {[%clk 0:02:35]} 13. Kg1 {[%clk 0:02:16.8]} 13... Bg4
{[%clk 0:02:33.9]} 14. Be1 {[%clk 0:02:00.4]} 14... Qf6 {[%clk 0:02:16.7]} 15.
Qc1 {[%clk 0:01:34.1]} 15... Rxe1 {[%clk 0:02:02.6]} 16. Qxe1 {[%clk 0:01:32]}
16... Qd4+ {[%clk 0:02:03.2]} 17. Qf2 {[%clk 0:01:32.1]} 17... Qxa1 {[%clk
0:02:03.3]} 18. Qxf4 {[%clk 0:01:31.5]} 18... Be2 {[%clk 0:01:55]} 19. Kf2
{[%clk 0:01:23.6]} 19... Bxf1 {[%clk 0:01:50.4]} 20. Rxf1 {[%clk 0:01:23.4]}
20... Qf6 {[%clk 0:01:46.2]} 21. Qxf6 {[%clk 0:01:21.9]} 21... gxf6 {[%clk
0:01:46]} 22. Ke3 {[%clk 0:01:20.2]} 22... Nd7 {[%clk 0:01:46.4]} 23. Kd4 {[%clk
0:01:19.5]} 23... Re8 {[%clk 0:01:45.1]} 24. Rf2 {[%clk 0:01:18]} 24... Kf7
{[%clk 0:01:43.5]} 25. c4 {[%clk 0:01:18.1]} 25... b6 {[%clk 0:01:43.4]} 26. a4
{[%clk 0:01:16.3]} 26... a5 {[%clk 0:01:43.1]} 27. g4 {[%clk 0:01:09.2]} 27...
h6 {[%clk 0:01:43.6]} 28. h4 {[%clk 0:01:08.6]} 28... Kg6 {[%clk 0:01:43.1]} 29.
Rf5 {[%clk 0:01:07]} 29... Nc5 {[%clk 0:01:42]} 30. h5+ {[%clk 0:01:04.6]} 30...
Kf7 {[%clk 0:01:41.2]} 31. d6 {[%clk 0:00:41.9]} 31... Rd8 {[%clk 0:01:29.3]}
0-1

[Event "Early-Titled-Tuesday-Blitz-October-17-2023"]
[Site "Chess.com"]
[Date "2023.10.17"]
[Round "9"]
[White "djokovic74"]
[Black "Cayse"]
[Result "1/2-1/2"]
[WhiteElo "2745"]
[BlackElo "2892"]
[TimeControl "180+1"]
[EndTime "9:46:42 PDT"]
[Termination "Game drawn by repetition"]

1. e4 {[%clk 0:03:00.9]} 1... e5 {[%clk 0:02:59.8]} 2. Nf3 {[%clk 0:03:00.5]}
2... Nc6 {[%clk 0:03:00.1]} 3. Bb5 {[%clk 0:03:00.6]} 3... a6 {[%clk 0:03:00.4]}
4. Ba4 {[%clk 0:03:01]} 4... Nf6 {[%clk 0:03:00.6]} 5. O-O {[%clk 0:03:01.3]}
5... Be7 {[%clk 0:03:00.9]} 6. d3 {[%clk 0:03:01.6]} 6... b5 {[%clk 0:02:59.4]}
7. Bb3 {[%clk 0:03:02.1]} 7... d6 {[%clk 0:02:57.9]} 8. a3 {[%clk 0:03:02.3]}
8... O-O {[%clk 0:02:57.3]} 9. Nc3 {[%clk 0:03:02.4]} 9... Bg4 {[%clk
0:02:57.1]} 10. Be3 {[%clk 0:03:02.5]} 10... Nd4 {[%clk 0:02:57.1]} 11. Bxd4
{[%clk 0:03:02.8]} 11... exd4 {[%clk 0:02:58]} 12. Nd5 {[%clk 0:03:03.4]} 12...
Nxd5 {[%clk 0:02:54]} 13. Bxd5 {[%clk 0:03:02.8]} 13... Rb8 {[%clk 0:02:51.1]}
14. h3 {[%clk 0:03:01.5]} 14... Bd7 {[%clk 0:02:50.8]} 15. Nxd4 {[%clk
0:02:54.1]} 15... Bf6 {[%clk 0:02:50.7]} 16. c3 {[%clk 0:02:31]} 16... Bxd4
{[%clk 0:02:49.8]} 17. cxd4 {[%clk 0:02:31.8]} 17... c6 {[%clk 0:02:50.5]} 18.
Ba2 {[%clk 0:02:11.7]} 18... Qf6 {[%clk 0:02:50.8]} 19. Qd2 {[%clk 0:02:10.7]}
19... Qxd4 {[%clk 0:02:50.5]} 20. Qc3 {[%clk 0:02:11]} 20... Qxc3 {[%clk
0:02:46.5]} 21. bxc3 {[%clk 0:02:11.5]} 21... Rfe8 {[%clk 0:02:46.6]} 22. f4
{[%clk 0:02:07.8]} 22... Kf8 {[%clk 0:02:41.9]} 23. Kf2 {[%clk 0:02:06.9]} 23...
a5 {[%clk 0:02:39.3]} 24. Rab1 {[%clk 0:01:55.2]} 24... f5 {[%clk 0:02:38.1]}
25. Rfe1 {[%clk 0:01:51.7]} 25... g6 {[%clk 0:02:31.6]} 26. e5 {[%clk
0:01:36.4]} 26... d5 {[%clk 0:02:22.9]} 27. c4 {[%clk 0:01:32.2]} 27... dxc4
{[%clk 0:02:21.7]} 28. dxc4 {[%clk 0:01:32.5]} 28... Be6 {[%clk 0:02:22.4]} 29.
Rb2 {[%clk 0:01:18]} 29... bxc4 {[%clk 0:02:10.6]} 30. Rc2 {[%clk 0:01:17.4]}
30... Red8 {[%clk 0:02:05.8]} 31. Bxc4 {[%clk 0:01:16.3]} 31... Bxc4 {[%clk
0:02:04.8]} 32. Rxc4 {[%clk 0:01:16.4]} 32... Rd2+ {[%clk 0:01:55.4]} 33. Re2
{[%clk 0:01:16]} 33... Rxe2+ {[%clk 0:01:52.2]} 34. Kxe2 {[%clk 0:01:16.4]}
34... Rb2+ {[%clk 0:01:52.3]} 35. Kf1 {[%clk 0:01:13.2]} 35... Rb1+ {[%clk
0:01:48.9]} 36. Kf2 {[%clk 0:01:13.1]} 36... Rb2+ {[%clk 0:01:49.5]} 37. Kf1
{[%clk 0:01:10.5]} 37... Rb1+ {[%clk 0:01:49.4]} 38. Kf2 {[%clk 0:01:09.7]}
38... Rb2+ {[%clk 0:01:49.8]} 39. Kg1 {[%clk 0:01:03.2]} 39... Rb3 {[%clk
0:01:49.7]} 40. Rxc6 {[%clk 0:01:02]} 40... Rxa3 {[%clk 0:01:49.8]} 41. Rc7
{[%clk 0:01:00.9]} 41... Ra4 {[%clk 0:01:47]} 42. g3 {[%clk 0:01:00.7]} 42...
Ra1+ {[%clk 0:01:34.7]} 43. Kg2 {[%clk 0:00:59.6]} 43... Ra2+ {[%clk 0:01:35.2]}
44. Kf3 {[%clk 0:00:57.7]} 44... Ra3+ {[%clk 0:01:35.2]} 45. Kg2 {[%clk
0:00:57.8]} 45... Ra2+ {[%clk 0:01:35.5]} 46. Kf3 {[%clk 0:00:58.2]} 46... Ra3+
{[%clk 0:01:35.8]} 47. Kg2 {[%clk 0:00:49.3]} 47... Ra2+ {[%clk 0:01:35.6]}
1/2-1/2